bitfinex/quotes_ETHUSD_20251127
["timestamp","ask_amount","ask_price","bid_price","bid_amount"]
[1764209728187,0.30586689,3049.2,3049.0,0.4878]
[1764209728378,0.30586689,3049.1,3049.0,0.4878]
[1764209728557,0.30586689,3049.2,3049.0,0.4878]
[1764209728758,0.30586689,3049.1,3049.0,0.9726]
[1764209731091,3.48929304,3049.5,3049.0,0.9726]
[1764209731293,0.30607979,3049.4,3049.1,0.6695]
[1764209731586,0.30607979,3049.3,3049.1,0.6695]
[1764209731784,0.88084044,3050.3,3049.1,0.57662133]
[1764209732087,1.67105393,3050.5,3049.6,0.4848]
[1764209732088,0.1,3050.0,3049.6,0.4848]
[1764209732278,0.51614641,3049.9,3049.6,0.4848]
[1764209732474,0.30614641,3049.8,3049.6,0.9726]
[1764209732661,0.30614641,3049.7,3049.6,0.9726]
[1764209732860,0.30614641,3049.7,3049.3,0.72559411]
[1764209733060,3.38026239,3050.4,3049.4,0.40051428]
[1764209733260,0.30627874,3050.3,3049.6,0.4848]
[1764209733578,6.65852478,3050.4,3049.6,0.4848]
[1764209733579,0.30627874,3050.2,3049.6,0.4848]
[1764209733788,0.30627874,3050.1,3049.7,0.4878]
[1764209733988,0.30627874,3050.0,3049.7,0.4878]
[1764209734197,0.30627874,3049.9,3049.7,0.4878]
[1764209734365,0.30627874,3049.8,3049.7,0.4878]
[1764209734712,0.30627874,3049.8,3049.7,1.21339411]
[1764209734890,0.30627874,3049.8,3049.7,2.14743837]
[1764209735077,0.002,3050.4,3049.8,0.72559411]
[1764209735283,0.30613062,3050.3,3049.8,1.21339411]
[1764209735598,0.002,3050.4,3050.3,0.6665]
[1764209736060,0.002,3050.4,3050.3,1.1543]
[1764209736680,0.002,3050.4,3050.3,1.87989411]
[1764209737189,0.002,3050.4,3050.3,2.08889411]
[1764209737389,0.002,3050.4,3050.3,1.87989411]
[1764209737887,0.002,3050.4,3050.0,0.4878]
[1764209738393,0.002,3050.4,3049.8,0.93459411]
[1764209738558,0.002,3050.4,3049.8,0.6968]
[1764209738763,0.002,3050.4,3049.8,0.93459411]
[1764209738983,0.002,3050.4,3050.3,0.6665]
[1764209739185,0.002,3050.4,3050.3,0.4848]
[1764209739391,0.4919,3050.4,3049.9,0.4878]
[1764209739760,0.002,3050.4,3049.9,0.4878]
[1764209739994,0.002,3050.4,3050.3,0.4822]
[1764209740791,0.002,3050.4,3050.1,0.1815]
[1764209740985,0.002,3050.4,3050.1,0.6491]
[1764209741170,0.002,3050.4,3049.9,0.4676]
[1764209741967,0.002,3050.4,3050.3,0.6637]
[1764209742177,0.002,3050.4,3050.0,0.1815]
[1764209742371,0.002,3050.4,3050.0,0.6491]
[1764209742588,0.65801639,3050.4,3049.8,0.209]
[1764209743091,0.65801639,3050.4,3049.8,3.48789915]
[1764209743272,0.65801639,3050.4,3049.8,3.95549915]
[1764209743468,3.93628379,3050.4,3049.8,0.6766]
[1764209743670,7.21455119,3050.4,3049.8,0.6766]
[1764209743900,0.73165512,3050.3,3049.8,0.4676]
[1764209744091,0.73165512,3050.3,3049.4,0.001]
[1764209744092,0.83165512,3050.3,3049.5,3.95579881]
[1764209744287,0.1,3050.3,3049.5,3.95579881]
[1764209744505,0.1,3050.3,3049.6,0.4676]
[1764209745171,0.1,3050.3,3049.7,3.27901105]
[1764209745587,3.2802674,3050.4,3049.8,0.4676]
[1764209746313,0.30541724,3050.3,3049.8,0.4676]
[1764209747075,3.2802674,3050.4,3049.8,0.4676]
[1764209748211,7.23547684,3050.4,3049.8,0.4676]
[1764209748411,3.95720944,3050.4,3049.8,0.4676]
[1764209750711,0.002,3050.4,3050.3,0.4822]
[1764209751193,0.002,3050.4,3050.3,0.9498]
[1764209753302,0.002,3050.4,3050.3,0.4822]
[1764209753914,0.002,3050.4,3050.3,0.9498]
[1764209757290,0.3080474,3050.4,3050.3,0.9498]
[1764209757686,0.3080474,3050.4,3050.0,0.209]
[1764209757902,0.3060474,3050.3,3050.0,0.209]
[1764209758207,0.3060474,3050.2,3050.0,0.209]
[1764209758407,0.0703,3050.4,3050.1,0.4676]
[1764209758408,0.002,3050.4,3050.1,0.4676]
[1764209758597,0.002,3050.4,3050.3,0.4822]
[1764209758801,0.30835678,3050.4,3050.3,0.4822]
[1764209761083,0.30835678,3050.4,3050.3,0.9498]
[1764209762386,0.30835678,3050.4,3050.3,4.22816606]
[1764209764992,0.30835678,3050.4,3050.3,0.9498]
[1764209766105,0.30835678,3050.4,3050.3,0.4822]
[1764209766510,0.30835678,3050.4,3050.1,3.92762906]
[1764209766714,0.30635678,3050.3,3050.1,3.46002906]
[1764209767014,0.30635678,3050.2,3050.1,3.92762906]
[1764209767215,0.30635678,3050.2,3050.0,0.209]
[1764209767416,0.002,3050.4,3050.2,0.405504]
[1764209767615,0.002,3050.8,3050.5,0.405504]
[1764209767803,0.002,3050.8,3050.7,0.898704]
[1764209768321,0.002,3050.8,3050.7,1.367504]
[1764209769323,0.002,3050.8,3050.7,4.64544021]
[1764209771397,0.002,3050.8,3050.6,0.13126223]
[1764209771714,0.39786802,3050.7,3050.3,0.209]
[1764209771897,0.30636802,3050.6,3050.1,0.1815]
[1764209772243,0.30636802,3050.5,3050.2,0.209]
[1764209772422,0.4559,3050.8,3050.2,0.209]
[1764209772724,0.4937,3050.3,3050.1,0.209]
[1764209772918,0.0557,3050.7,3050.2,3.81]
[1764209773226,0.30642694,3050.6,3050.2,3.81]
[1764209773395,0.30642694,3050.5,3050.2,3.81]
[1764209773596,0.002,3050.5,3050.2,3.81]
[1764209774809,0.30645655,3050.4,3050.2,3.81]
[1764209775015,0.002,3050.5,3050.2,3.81]
[1764209775213,0.30645948,3050.4,3050.2,3.81]
[1764209775395,0.002,3050.5,3050.2,3.81]
[1764209775597,0.30648698,3050.4,3050.2,3.81]
[1764209775818,0.002,3050.5,3050.2,3.81]
[1764209776126,0.002,3050.5,3050.4,0.4521]
[1764209776729,0.002,3050.5,3050.4,0.9263]
[1764209777502,0.002,3050.5,3050.4,4.20455858]
[1764209778718,0.002,3050.5,3050.4,8.01455858]
[1764209781009,0.002,3050.5,3050.4,8.42006258]
[1764209781326,0.002,3050.8,3050.7,3.808]
[1764209781625,0.002,3050.8,3050.7,7.53803621]
[1764209781825,0.002,3050.8,3050.7,8.22123621]
[1764209782531,0.002,3050.8,3050.7,8.62674021]
[1764209784744,0.002,3050.8,3050.7,9.35233432]
[1764209785044,0.002,3050.8,3050.7,11.26337316]
[1764209785226,0.002,3050.8,3050.7,11.39462505]
[1764209787429,0.002,3051.4,3051.2,3.804]
[1764209787619,0.002,3051.4,3051.3,4.6479]
[1764209787819,0.002,3051.4,3051.3,8.38998164]
[1764209788033,0.002,3051.4,3051.3,8.86418164]
[1764209788253,0.002,3051.4,3051.3,8.90918164]
[1764209790050,0.002,3051.4,3051.3,4.97489]
[1764209790349,0.4957,3051.4,3051.3,4.058]
[1764209791364,0.002,3051.4,3051.3,7.78739164]
[1764209791723,0.002,3051.4,3051.3,8.26159164]
[1764209793156,0.002,3051.4,3051.3,7.78739164]
[1764209793853,0.002,3051.4,3051.3,8.26159164]
[1764209794058,0.002,3051.4,3051.3,9.41549938]
[1764209796831,0.002,3052.1,3051.8,0.405504]
[1764209797029,0.002,3052.7,3052.2,0.405504]
[1764209797267,0.002,3052.7,3052.1,0.72559411]
[1764209797268,0.002,3052.7,3052.4,0.405504]
[1764209797432,0.002,3052.7,3052.6,5.81189812]
[1764209797627,0.002,3052.7,3052.6,6.86023385]
[1764209797961,0.002,3052.7,3052.6,7.33443385]
[1764209798847,0.002,3052.7,3052.6,10.6103298]
[1764209800572,0.002,3052.7,3052.6,5.33329406]
[1764209800752,0.002,3052.7,3052.6,6.89414242]
[1764209804958,0.002,3052.7,3052.6,7.02529963]
[1764209805159,0.002,3052.7,3052.6,6.81629963]
[1764209805377,0.002,3052.7,3052.6,7.02529963]
[1764209805871,0.002,3052.7,3052.6,7.87460021]
[1764209806044,0.002,3052.7,3052.6,7.02529963]
[1764209807974,0.002,3052.7,3052.6,7.07029963]
[1764209809577,0.002,3052.7,3052.6,6.86129963]
[1764209809876,0.002,3052.7,3052.6,6.38709963]
[1764209810080,0.002,3052.7,3052.6,7.09259963]
[1764209810675,0.002,3053.0,3052.8,1.13109811]
[1764209810877,0.002,3053.0,3052.9,0.94780981]
[1764209811059,0.002,3053.0,3052.9,1.44430981]
[1764209811267,0.002,3053.0,3052.9,4.8510402]
[1764209812052,0.002,3053.0,3052.9,15.5365442]
[1764209815483,0.002,3053.0,3052.9,15.11788785]
[1764209817258,0.002,3053.0,3052.9,8.63788785]
[1764209817988,0.002,3053.0,3052.9,15.16288785]
[1764209818189,0.47,3053.0,3052.9,14.70818785]
[1764209818490,0.002,3053.0,3052.9,15.65938785]
[1764209818871,0.002,3053.0,3052.9,15.45038785]
[1764209819076,0.002,3053.0,3052.9,15.16288785]
[1764209821079,0.002,3053.0,3052.9,16.38498196]
[1764209821277,0.002,3053.4,3053.3,1.13109811]
[1764209821489,0.002,3053.4,3053.3,8.83261792]
[1764209821702,0.002,3053.4,3053.3,12.60426284]
[1764209821868,0.002,3053.4,3053.3,13.08066284]
[1764209823167,0.002,3053.4,3053.3,16.87466284]
[1764209825498,0.87866972,3055.3,3053.5,3.454]
[1764209825799,0.0998,3055.9,3055.1,1.13109811]
[1764209826004,0.5762,3055.9,3055.2,0.405504]
[1764209826208,0.0729,3055.2,3055.1,0.72559411]
[1764209826503,0.0729,3055.2,3055.1,0.93459411]
[1764209826806,0.5453,3055.2,3055.1,0.97959411]
[1764209826963,0.0729,3055.2,3055.1,0.97959411]
[1764209827171,0.0729,3055.2,3055.1,1.38509811]
[1764209827392,0.0729,3055.2,3055.1,1.96928307]
[1764209827610,0.0729,3055.2,3055.1,1.17609811]
[1764209827816,0.5288,3055.2,3055.1,0.254]
[1764209828308,0.83435902,3055.2,3055.1,0.045]
[1764209832011,0.83399774,3055.2,3055.1,0.045]
[1764209832510,0.0729,3055.2,3055.1,3.31821527]
[1764209833906,0.0729,3055.2,3055.1,0.045]
[1764209834111,0.0729,3055.2,3055.1,3.31821527]
[1764209834675,0.0729,3055.2,3055.1,0.045]
[1764209834899,0.5377,3055.2,3055.1,0.045]
[1764209835175,0.84275918,3055.2,3055.1,0.045]
[1764209835399,4.52743283,3055.2,3055.1,0.045]
[1764209835775,4.62743283,3055.2,3055.1,0.045]
[1764209836819,4.52743283,3055.2,3055.1,0.045]
[1764209837112,1.25432469,3055.2,3055.1,0.045]
[1764209837279,0.84275918,3055.2,3055.1,0.045]
[1764209839631,4.21586732,3055.2,3055.1,0.045]
[1764209840916,4.11586732,3055.2,3055.1,0.045]
[1764209842693,4.11586732,3055.2,3054.5,3.48285179]
[1764209842694,4.11586732,3055.2,3054.5,0.209]
[1764209842897,4.11586732,3055.2,3054.4,3.27392995]
[1764209842898,0.1762,3054.6,3054.4,3.27392995]
[1764209843083,0.1762,3054.6,3054.5,0.209]
[1764209843514,0.6639,3054.6,3054.5,0.209]
[1764209844708,0.1762,3054.9,3054.5,3.48285824]
[1764209844883,0.30543723,3054.8,3054.5,3.48285824]
[1764209845289,0.1762,3054.9,3054.5,3.48285824]
[1764209845290,0.0844,3054.6,3054.5,0.209]
[1764209845584,0.0844,3054.6,3054.4,0.209]
[1764209846112,0.0882,3054.5,3054.4,0.209]
[1764209847414,0.0882,3054.5,3053.9,3.27447407]
[1764209847415,0.5454,3054.5,3053.9,3.27447407]
[1764209847618,0.305737,3054.4,3054.0,0.209]
[1764209847918,0.83910498,3054.5,3054.1,0.209]
[1764209848114,0.77054073,3054.4,3054.1,0.209]
[1764209848316,0.0844,3054.2,3054.1,0.209]
[1764209848609,0.0844,3054.2,3053.9,6.54897552]
[1764209848809,0.461,3054.4,3054.0,0.209]
[1764209849312,0.461,3054.4,3054.1,3.27428702]
[1764209849800,0.0882,3054.2,3054.1,3.27428702]
[1764209851722,0.0882,3054.2,3053.8,3.27458757]
[1764209851896,0.4572,3054.2,3053.9,0.209]
[1764209852218,0.4648,3054.5,3053.9,0.209]
[1764209852387,0.4648,3054.5,3053.8,6.54919625]
[1764209852388,0.30598144,3054.4,3053.8,6.54919625]
[1764209852589,0.4648,3054.5,3054.0,0.209]
[1764209852894,0.30599509,3054.4,3054.0,0.209]
[1764209853110,0.4648,3054.8,3054.0,0.209]
[1764209853301,0.30598421,3054.7,3054.0,0.209]
[1764209853597,0.30598421,3054.6,3054.1,3.27428702]
[1764209853799,0.1762,3054.9,3054.2,0.4748]
[1764209854013,0.305984,3054.8,3054.2,0.4748]
[1764209854189,0.305984,3054.7,3054.2,0.4748]
[1764209854393,0.1762,3054.9,3054.2,0.4748]
[1764209854594,0.30601951,3054.8,3054.2,0.4748]
[1764209854839,0.1762,3054.9,3054.2,0.4748]
[1764209854840,0.30601951,3054.7,3054.2,0.4748]
[1764209855012,0.1762,3054.9,3054.2,0.4748]
[1764209855219,0.30601955,3054.8,3054.2,0.4748]
[1764209855415,0.30601955,3054.7,3054.2,0.4748]
[1764209855587,0.30601955,3054.6,3054.3,3.27407261]
[1764209855786,0.641,3054.9,3054.4,0.209]
[1764209856020,0.7708616,3054.8,3054.4,0.209]
[1764209856195,0.0844,3054.5,3054.2,3.27416466]
[1764209856520,0.4648,3054.7,3054.3,0.209]
[1764209856817,0.30614756,3054.6,3054.3,0.209]
[1764209856986,0.0844,3054.4,3054.3,0.209]
[1764209857190,0.30614757,3054.6,3054.3,0.209]
[1764209857388,0.30626572,3054.5,3054.3,1.85193445]
[1764209857587,0.1762,3054.9,3054.4,3.27396542]
[1764209857898,0.30626962,3054.8,3054.4,0.473]
[1764209858096,0.492,3054.5,3054.3,0.209]
[1764209858413,0.492,3054.4,3054.3,3.48307261]
[1764209859127,0.0574,3054.7,3054.3,3.48307261]
[1764209859329,0.4877,3054.4,3054.2,3.27417071]
[1764209859532,0.4877,3054.4,3054.3,0.209]
[1764209859695,3.27321527,3055.1,3054.3,0.473]
[1764209859896,0.1762,3054.9,3054.3,0.682]
[1764209860094,0.30633371,3054.8,3054.3,0.682]
[1764209860308,0.30633371,3054.7,3054.3,0.209]
[1764209860531,0.0638,3054.4,3054.3,0.209]
[1764209861023,0.85158081,3054.4,3054.3,0.209]
[1764209861216,0.85158081,3054.4,3054.1,3.27427834]
[1764209861417,0.4814,3054.4,3054.3,0.209]
[1764209861597,0.78781199,3054.4,3054.3,0.209]
[1764209861925,0.85581199,3054.4,3054.3,0.209]
[1764209862095,0.85581199,3054.4,3054.0,3.27439347]
[1764209862295,0.068,3054.1,3054.0,3.27439347]
[1764209862618,0.068,3054.1,3054.0,3.48339347]
[1764209863823,0.4856,3054.6,3054.0,3.95899347]
[1764209863996,0.30653377,3054.5,3054.0,3.95899347]
[1764209864191,0.30653377,3054.4,3054.0,3.74999347]
[1764209864398,0.0638,3054.1,3053.9,3.27448644]
[1764209864597,0.0638,3054.1,3054.0,0.209]
[1764209865303,0.88102075,3055.6,3055.1,0.405504]
[1764209865507,2.33737273,3056.4,3055.1,0.405504]
[1764209865508,0.4856,3056.4,3055.3,1.15981433]
[1764209865828,0.79211151,3056.3,3055.6,3.27267967]
[1764209866119,0.30651151,3056.2,3055.7,0.209]
[1764209866321,0.30651151,3056.1,3055.5,3.27277397]
[1764209866527,0.30651151,3056.0,3055.3,0.86944812]
[1764209866728,0.30651151,3055.9,3055.3,0.86944812]
[1764209866913,0.30651151,3055.8,3055.4,0.209]
[1764209867109,0.1,3056.1,3055.3,0.86944812]
[1764209867303,0.30619766,3056.0,3055.0,4.14273713]
[1764209867508,0.5856,3056.1,3055.0,3.27330393]
[1764209867509,0.1762,3055.4,3055.0,3.27330393]
[1764209867703,0.1762,3055.4,3055.1,0.209]
[1764209868543,0.0638,3055.2,3054.8,0.86944812]
[1764209868825,0.1762,3055.4,3054.3,4.14344827]
[1764209868826,0.068,3054.9,3054.3,4.14344827]
[1764209869022,0.30603449,3055.1,3054.3,4.14344827]
[1764209869023,0.30603449,3055.0,3054.3,4.14344827]
[1764209869323,0.30606417,3054.9,3054.4,0.209]
[1764209869523,0.4856,3055.0,3054.4,0.209]
[1764209869696,0.30606409,3054.9,3054.4,3.48293639]
[1764209869899,0.4856,3055.0,3054.4,3.48293639]
[1764209870099,0.4856,3055.0,3054.4,0.209]
[1764209870100,0.30606489,3054.9,3054.4,0.209]
[1764209870325,0.0638,3054.5,3054.1,0.86944812]
[1764209870613,0.0638,3054.2,3054.1,0.209]
[1764209871614,0.4814,3054.7,3053.9,6.54899856]
[1764209871615,0.5814,3054.7,3053.9,6.54899856]
[1764209871822,0.30609856,3054.6,3054.0,3.48329228]
[1764209872009,0.30609856,3054.5,3054.0,3.48329228]
[1764209872207,0.30609856,3054.4,3054.0,3.48329228]
[1764209872411,3.85504791,3054.7,3054.0,3.48329228]
[1764209872729,0.30608834,3054.6,3054.0,3.48329228]
[1764209872929,0.30608834,3054.5,3054.0,3.48329228]
[1764209873128,0.30608834,3054.4,3054.0,3.48329228]
[1764209873313,3.85504791,3054.7,3054.0,3.48329228]
[1764209873627,0.30607844,3054.6,3054.1,0.1997]
[1764209873933,0.6946,3055.3,3054.2,3.27417981]
[1764209873934,3.27321527,3055.1,3054.2,3.27417981]
[1764209874127,0.30605904,3055.0,3054.2,3.27417981]
[1764209874430,0.30605904,3054.9,3054.2,4.5498494]
[1764209874731,0.30605904,3054.8,3054.2,4.5498494]
[1764209874906,0.30605904,3054.7,3054.2,4.5498494]
[1764209875106,0.30605904,3054.6,3054.2,3.73207981]
[1764209875331,0.4856,3055.0,3054.3,0.209]
[1764209875533,0.30605884,3054.9,3054.1,3.47395362]
[1764209875831,0.30605884,3054.9,3054.2,0.209]
[1764209875832,0.30606167,3054.8,3054.2,0.209]
[1764209876015,0.30606167,3054.7,3054.2,0.209]
[1764209876332,0.30606167,3054.6,3054.2,0.209]
[1764209876636,0.4856,3054.9,3054.2,3.4831616]
[1764209876806,0.3060619,3054.8,3054.2,3.4831616]
[1764209877006,0.3060619,3054.7,3054.2,4.63678627]
[1764209877209,0.3060619,3054.6,3054.2,4.63678627]
[1764209877413,3.27333856,3055.0,3054.2,4.63678627]
[1764209877610,0.30606001,3054.9,3054.2,3.9410616]
[1764209877814,0.30606001,3054.8,3054.2,3.9410616]
[1764209878025,0.30606001,3054.7,3054.2,3.4831616]
[1764209878211,0.30606001,3054.6,3054.2,3.4831616]
[1764209878516,0.0638,3054.3,3054.0,0.209]
[1764209878900,0.1,3054.7,3054.0,0.209]
[1764209879230,0.30609267,3054.6,3054.1,0.1997]
[1764209879429,0.72559411,3055.2,3054.1,0.1997]
[1764209879430,3.2733459,3055.0,3054.1,0.1997]
[1764209879629,0.3060778,3054.9,3054.1,0.83113394]
[1764209879827,0.3060778,3054.8,3054.1,0.83113394]
[1764209880136,0.3060778,3054.7,3054.2,7.00625962]
[1764209880308,0.3060778,3054.6,3054.2,7.00625962]
[1764209880511,3.48224072,3055.1,3054.3,0.73794936]
[1764209880829,0.30605643,3055.0,3054.4,0.209]
[1764209881029,0.4856,3055.8,3054.4,0.209]
[1764209881030,0.1,3055.3,3054.5,0.209]
[1764209881240,0.30603425,3055.2,3054.5,0.209]
[1764209881426,0.30603425,3055.1,3054.5,0.6669]
[1764209881739,0.30603425,3055.0,3054.5,0.6669]
[1764209881934,3.27289389,3055.4,3054.6,3.27375106]
[1764209882149,0.30601387,3055.3,3054.7,0.209]
[1764209882313,0.30601387,3055.2,3054.7,0.209]
[1764209882509,0.30601387,3055.1,3054.7,0.209]
[1764209882714,0.2388,3054.8,3054.4,3.27496128]
[1764209883017,0.175,3054.8,3054.5,0.209]
[1764209884447,0.48225124,3055.0,3054.5,0.209]
[1764209884628,0.0638,3054.6,3054.5,0.209]
[1764209885415,0.0638,3054.6,3054.4,0.21]
[1764209886541,3.27511405,3055.2,3054.5,0.4756]
[1764209886542,0.30606831,3054.8,3054.5,0.4756]
[1764209886743,0.30606407,3054.7,3054.5,0.4756]
[1764209886955,3.27519725,3055.2,3054.5,0.4756]
[1764209887118,0.0638,3054.6,3054.4,0.21]
[1764209887450,0.30606412,3054.7,3054.4,0.21]
[1764209887644,0.6593,3054.8,3054.4,0.21]
[1764209887947,0.0662,3054.5,3054.4,0.21]
[1764209888756,0.1762,3054.8,3054.4,3.95005405]
[1764209888948,0.209,3055.4,3054.4,3.95005405]
[1764209888949,0.30608082,3054.7,3054.5,0.86110541]
[1764209889116,0.30608082,3054.6,3054.5,0.86110541]
[1764209889728,0.30608082,3054.6,3054.5,0.4661]
[1764209889932,0.37228082,3054.6,3054.4,0.21]
[1764209890129,0.0739,3054.5,3054.4,0.21]
[1764209890339,0.0739,3054.5,3054.4,0.001]
[1764209890530,0.85137499,3054.5,3054.4,0.001]
[1764209891945,0.30607499,3054.5,3054.4,0.001]
[1764209892150,0.37997499,3054.5,3054.4,0.001]
[1764209892449,4.59059685,3054.5,3054.4,0.001]
[1764209893035,4.01919685,3054.5,3054.4,0.001]
[1764209893231,0.30607499,3054.5,3054.4,0.4977]
[1764209893845,0.002,3055.2,3054.4,0.9676]
[1764209894019,0.30600814,3055.1,3054.4,0.9676]
[1764209894223,0.30600814,3055.0,3054.5,3.74365496]
[1764209894445,0.30600013,3054.9,3054.6,0.4241355]
[1764209894744,3.27518656,3055.2,3054.4,3.27496202]
[1764209894745,3.75058656,3055.2,3054.4,3.27496202]
[1764209894927,0.48220718,3055.1,3054.4,3.48396202]
[1764209895135,0.30600718,3055.0,3054.5,0.4699]
[1764209895350,0.30600718,3054.9,3054.5,0.4699]
[1764209895536,0.002,3055.2,3054.6,0.72278274]
[1764209895742,0.30599429,3055.1,3054.6,0.72278274]
[1764209895942,0.30599429,3055.0,3054.6,0.72278274]
[1764209896138,0.002,3055.2,3054.6,0.72278274]
[1764209896139,0.30599429,3054.9,3054.6,1.19268274]
[1764209896345,0.002,3055.2,3054.6,0.72278274]
[1764209896657,0.1,3055.0,3054.7,0.209]
[1764209896858,0.30621886,3054.9,3054.7,0.209]
[1764209897057,0.30621886,3054.8,3054.7,0.209]
[1764209897227,0.30621886,3054.8,3054.4,0.001]
[1764209897228,0.38111886,3054.8,3054.4,0.001]
[1764209897432,0.3064058,3054.7,3054.5,0.209]
[1764209897735,0.3064058,3054.6,3054.5,0.209]
[1764209898563,0.3064058,3054.6,3054.5,0.4967]
[1764209898730,0.3064058,3054.6,3054.5,4.14772327]
[1764209898932,0.1751,3055.1,3054.5,4.61762327]
[1764209899238,0.30655219,3055.0,3054.5,4.61762327]
[1764209899422,0.30655219,3054.9,3054.5,4.61762327]
[1764209899622,0.30655219,3054.8,3054.6,0.4699]
[1764209899824,0.30655219,3054.7,3054.6,1.28005736]
[1764209900061,0.30655219,3054.7,3054.4,0.001]
[1764209900245,0.30655219,3054.6,3054.5,0.209]
[1764209900447,0.30655219,3054.6,3054.4,0.001]
[1764209900628,3.27344281,3054.9,3054.4,0.21]
[1764209900824,0.3065742,3054.8,3054.4,0.001]
[1764209901149,0.3065742,3054.7,3054.4,0.001]
[1764209901329,0.3065742,3054.6,3054.4,0.43645027]
[1764209901530,3.27332832,3055.0,3054.4,0.43645027]
[1764209901727,0.30658918,3054.9,3054.5,0.001]
[1764209901945,0.1751,3055.1,3054.8,0.4967]
[1764209902150,0.1751,3055.1,3054.5,0.001]
[1764209902151,0.0749,3054.9,3054.5,0.001]
[1764209902351,0.30657016,3054.8,3054.6,0.209]
[1764209902564,0.0047,3054.6,3054.5,0.001]
[1764209902758,0.31127016,3054.6,3054.5,0.001]
[1764209902962,0.30657016,3054.6,3054.5,0.001]
[1764209903457,0.30657016,3054.6,3054.5,0.4977]
[1764209903666,0.30657016,3054.6,3054.5,0.9676]
[1764209903863,0.30657016,3054.6,3054.5,1.17240342]
[1764209905146,0.30657016,3054.6,3054.5,4.44626166]
[1764209906963,3.450337,3055.1,3054.5,4.44626166]
[1764209907271,0.1,3054.9,3054.5,0.001]
[1764209907471,0.30661509,3054.8,3054.5,0.001]
[1764209907674,0.1,3054.9,3054.5,0.001]
[1764209907675,0.0749,3054.6,3054.5,0.001]
[1764209907845,0.38151509,3054.6,3054.5,0.001]
[1764209908167,0.30661509,3054.6,3054.5,0.4977]
[1764209908369,0.30661509,3054.6,3054.5,4.25676551]
[1764209908946,0.30661509,3054.6,3054.5,5.25676551]
[1764209909341,0.30661509,3054.6,3054.5,9.06676551]
[1764209910868,0.30661509,3054.6,3054.5,5.79290727]
[1764209911075,0.76741509,3054.6,3054.5,4.811]
[1764209911263,0.30661509,3054.6,3054.5,4.811]
[1764209911444,0.30661509,3054.6,3054.5,5.3077]
[1764209911644,0.30661509,3054.6,3054.5,4.811]
[1764209913047,0.38151509,3054.6,3054.5,4.811]
[1764209913985,3.65526615,3054.6,3054.5,4.811]
[1764209914441,0.38151509,3054.6,3054.5,4.811]
[1764209915578,0.30661509,3054.6,3054.5,5.3077]
[1764209915743,0.30661509,3054.6,3054.5,6.74380858]
[1764209917275,0.30661509,3054.6,3054.5,6.27390858]
[1764209918376,0.30661509,3054.6,3054.5,5.3077]
[1764209918573,0.30661509,3054.6,3054.5,4.811]
[1764209918980,0.30661509,3054.6,3054.5,5.3077]
[1764209919652,0.30661509,3054.6,3054.5,4.811]
[1764209919978,0.79621509,3054.6,3054.5,4.811]
[1764209920750,0.30661509,3054.6,3054.5,5.3077]
[1764209921159,0.40361509,3054.6,3054.5,4.811]
[1764209921969,0.30661509,3054.6,3054.5,4.811]
[1764209922364,0.30661509,3054.6,3054.5,5.3077]
[1764209925561,0.30661509,3054.6,3054.5,5.7855]
[1764209926285,0.30661509,3054.6,3054.5,9.05935824]
[1764209927487,0.30661509,3054.6,3054.5,10.16777767]
[1764209928193,0.30699511,3054.6,3054.5,10.16777767]
[1764209932583,0.40299511,3054.6,3054.5,1.001]
[1764209932782,0.85319511,3054.6,3054.5,1.001]
[1764209933724,0.40299511,3054.6,3054.5,1.001]
[1764209934007,0.30699511,3054.6,3054.5,1.001]
[1764209934579,0.40379511,3054.6,3054.5,1.001]
[1764209934775,1.23847352,3054.6,3054.5,1.001]
[1764209935099,4.51222458,3054.6,3054.5,1.001]
[1764209935502,4.61222458,3054.6,3054.5,1.001]
[1764209936004,5.54681869,3054.6,3054.5,1.001]
[1764209936202,5.54681869,3054.6,3054.5,0.78797442]
[1764209938015,5.95232269,3054.6,3054.5,0.46840697]
[1764209938313,0.82559411,3054.5,3054.4,0.001]
[1764209938505,2.04141109,3054.5,3054.4,0.001]
[1764209939189,2.04077602,3054.5,3054.4,0.001]
[1764209939394,2.14077602,3054.5,3054.4,0.001]
[1764209939974,5.41463426,3054.5,3054.4,0.001]
[1764209940898,5.31463426,3054.5,3054.4,0.001]
[1764209942316,5.41463426,3054.5,3054.4,0.001]
[1764209942519,5.82013826,3054.5,3054.4,0.001]
[1764209943019,5.62363426,3054.5,3054.4,0.001]
[1764209944024,6.02913826,3054.5,3054.4,0.001]
[1764209944327,0.0008,3054.2,3054.1,0.001]
[1764209944496,0.39956004,3054.2,3054.1,0.001]
[1764209944698,4.95641552,3054.2,3054.1,0.001]
[1764209944894,1.23109811,3054.1,3053.8,0.001]
[1764209945125,4.86535948,3053.9,3053.8,0.001]
[1764209945306,1.13109811,3053.8,3053.4,0.001]
[1764209945508,4.61285948,3053.5,3053.4,0.001]
[1764209945715,4.61285948,3053.5,3053.0,0.001]
[1764209945716,1.13109811,3053.4,3053.0,0.001]
[1764209946026,4.09255358,3053.1,3053.0,0.001]
[1764209946207,4.39891362,3053.1,3053.0,0.001]
[1764209946397,5.71213549,3053.1,3053.0,0.001]
[1764209947043,6.11763949,3053.1,3053.0,0.001]
[1764209947249,6.11763949,3053.1,3052.5,0.001]
[1764209947250,0.1,3052.8,3052.5,0.001]
[1764209947397,0.50236004,3052.8,3052.5,0.001]
[1764209947596,0.95176004,3052.8,3052.5,0.001]
[1764209947802,1.13875546,3052.8,3052.5,0.001]
[1764209948340,5.54553491,3052.8,3052.5,0.001]
[1764209949111,5.14003091,3052.8,3052.5,0.001]
[1764209951325,5.54553491,3052.8,3052.5,0.001]
[1764209953027,5.14003091,3052.8,3052.5,0.001]
[1764209953211,4.69063091,3052.8,3052.5,0.001]